[Event "33rd Pula Open 2019"]
[Site "Pula"]
[Date "2019.06.25"]
[Round "5.5"]
[White "Beletic, Daniel"]
[Black "Bratkovic, Sham"]
[Result "1-0"]
[ECO "D02"]
[WhiteElo "2380"]
[BlackElo "2237"]
[Annotator "NA"]
[PlyCount "177"]
[EventDate "2019.06.22"]
[EventType "swiss"]
[EventCountry "CRO"]
[SourceTitle "playchess.com"]
[Source "ChessBase"]
[SourceQuality "1"]
[TimeControl "5400+30"]

1. d4 {[%emt 0:06:30]} d5 {[%emt 0:00:30]} 2. Bf4 {[%emt 0:00:30]} Nf6 {[%emt 0:02:30]} 3. e3 {[%emt 0:00:30]} g6 {[%emt 0:01:30]} 4. Nd2 {[%emt 0:01:30]} Bg7 {[%emt 0:00:30]} 5. Ngf3 {[%emt 0:00:30]} O-O {[%emt 0:00:30]} 6. Be2 {[%emt 0:00:00]} c5 {[%emt 0:03:30]} 7. c3 {[%emt 0:00:00]} b6 {[%emt 0:02:30]} 8. b4 {[%emt 0:02:30]} Nbd7 {[%emt 0:09:30]} 9. bxc5 {[%emt 0:04:30]} bxc5 {[%emt 0:00:30]} 10. Qa4 {[%emt 0:00:30]} Nh5 {[%emt 0:15:30]} 11. Bg5 {[%emt 0:02:30]} c4 {[%emt 0:05:30]} 12. O-O {[%emt 0:02:30]} f5 {[%emt 0:03:30]} 13. Qc6 {[%emt 0:27:30]} Nb6 {[%emt 0:04:30]} 14. Ne5 {[%emt 0:02:30]} Nf6 {[%emt 0:03:30]} 15. a4 {[%emt 0:04:30]} a5 {[%emt 0:15:30]} 16. Rfb1 {[%emt 0:01:30]} Ra6 {[%emt 0:01:30]} 17. Qb5 {[%emt 0:02:30]} Qd6 {[%emt 0:09:57]} 18. Bf4 {[%emt 0:05:30]} Qe6 {[%emt 0:01:11]} 19. Nc6 {[%emt 0:07:30]} Nbd7 {[%emt 0:02:17]} 20. Nb8 {[%emt 0:04:30]} Nxb8 {[%emt 0:01:24]} 21. Qxb8 {[%emt 0:00:30]} Qc6 {[%emt 0:03:57]} 22. Qb5 {[%emt 0:02:50]} Qa8 {[%emt 0:03:33]} 23. Be5 {[%emt 0:01:47]} Nd7 {[%emt 0:01:52]} 24. Bf3 {[%emt 0:02:25]} e6 {[%emt 0:00:38]} 25. Bxg7 {[%emt 0:01:17]} Kxg7 {[%emt 0:00:09]} 26. Nxc4 {[%emt 0:01:07]} Qa7 {[%emt 0:02:02]} 27. Na3 {[%emt 0:00:47]} Rb6 {[%emt 0:00:15]} 28. Qd3 {[%emt 0:00:13]} Ba6 {[%emt 0:00:43]} 29. Nb5 {[%emt 0:00:20]} Rfb8 {[%emt 0:01:45]} 30. c4 {[%emt 0:00:40]} dxc4 {[%emt 0:00:50]} 31. Qxc4 {[%emt 0:00:09]} Nf6 {[%emt 0:00:33]} 32. Rc1 {[%emt 0:03:27]} Bxb5 {[%emt 0:00:52]} 33. axb5 {[%emt 0:00:08]} Rxb5 {[%emt 0:01:18]} 34. Qxe6 {[%emt 0:00:17]} a4 {[%emt 0:01:21]} 35. h4 {[%emt 0:01:10]} a3 {[%emt 0:00:33]} 36. Qd6 {[%emt 0:00:24]} Ne8 {[%emt 0:01:11]} 37. Qxa3 {[%emt 0:00:22]} Qxa3 {[%emt 0:00:17]} 38. Rxa3 {[%emt 0:00:09]} Rb2 {[%emt 0:00:03]} 39. Ra8 {[%emt 0:01:26]} Rxa8 {[%emt 0:00:11]} 40. Bxa8 {[%emt 0:00:08]} Nd6 {[%emt 0:00:31]} 41. Rc6 {[%emt 0:01:11]} Ne8 {[%emt 0:00:55]} 42. Re6 {[%emt 0:01:14]} Kf7 {[%emt 0:00:32]} 43. Bd5 {[%emt 0:00:33]} Rb1+ {[%emt 0:00:37]} 44. Kh2 {[%emt 0:00:09]} Rf1 {[%emt 0:00:12]} 45. Rb6+ {[%emt 0:00:48]} Kg7 {[%emt 0:00:13]} 46. Rb2 {[%emt 0:01:12]} Nf6 {[%emt 0:00:23]} 47. Bf3 {[%emt 0:00:08]} h6 {[%emt 0:00:56]} 48. g3 {[%emt 0:02:20]} g5 {[%emt 0:00:23]} 49. hxg5 {[%emt 0:00:09]} hxg5 {[%emt 0:00:04]} 50. Kg2 {[%emt 0:00:03]} Ra1 {[%emt 0:00:46]} 51. Rb5 {[%emt 0:02:31]} Kg6 {[%emt 0:00:54]} 52. Bb7 {[%emt 0:00:57]} Ra2 {[%emt 0:00:55]} 53. Bc8 {[%emt 0:00:58]} f4 {[%emt 0:00:04]} 54. Bf5+ {[%emt 0:00:47]} Kh6 {[%emt 0:00:37]} 55. Rb6 {[%emt 0:02:09]} fxe3 {[%emt 0:01:00]} 56. Rxf6+ {[%emt 0:01:19]} Kg7 {[%emt 0:00:02]} 57. Rg6+ {[%emt 0:00:05]} Kf7 {[%emt 0:00:06]} 58. g4 {[%emt 0:00:12]} Rxf2+ {[%emt 0:00:43]} 59. Kg3 {[%emt 0:00:14]} Rf4 {[%emt 0:00:18]} 60. Re6 {[%emt 0:00:31]} Rxd4 {[%emt 0:00:29]} 61. Rxe3 {[%emt 0:00:07]} Rb4 {[%emt 0:00:21]} 62. Rf3 {[%emt 0:00:47]} Kg7 {[%emt 0:00:14]} 63. Bd3 {[%emt 0:01:05]} Rb3 {[%emt 0:00:36]} 64. Bc4 {[%emt 0:01:14]} Rb4 {[%emt 0:00:16]} 65. Bf7 {[%emt 0:00:28]} Ra4 {[%emt 0:01:10]} 66. Bh5 {[%emt 0:00:11]} Rb4 {[%emt 0:00:36]} 67. Rf7+ {[%emt 0:00:17]} Kh6 {[%emt 0:00:44]} 68. Rf6+ {[%emt 0:00:08]} Kh7 {[%emt 0:00:00]} 69. Kf3 {[%emt 0:00:10]} Ra4 {[%emt 0:00:43]} 70. Ke3 {[%emt 0:00:08]} Rb4 {[%emt 0:00:25]} 71. Rd6 {[%emt 0:00:11]} Ra4 {[%emt 0:01:08]} 72. Rd4 {[%emt 0:00:11]} Ra1 {[%emt 0:00:31]} 73. Ke4 {[%emt 0:00:22]} Rf1 {[%emt 0:00:16]} 74. Rd7+ {[%emt 0:00:24]} Kh6 {[%emt 0:00:24]} 75. Rd6+ {[%emt 0:00:14]} Kh7 {[%emt 0:00:05]} 76. Ke5 {[%emt 0:00:13]} Rf4 {[%emt 0:00:35]} 77. Re6 {[%emt 0:00:50]} Rf2 {[%emt 0:01:13]} 78. Rg6 {[%emt 0:00:25]} Ra2 {[%emt 0:00:28]} 79. Rxg5 {[%emt 0:00:28]} Ra5+ {[%emt 0:00:05]} 80. Kf4 {[%emt 0:00:12]} Ra4+ {[%emt 0:00:04]} 81. Kg3 {[%emt 0:00:10]} Rb4 {[%emt 0:00:17]} 82. Kh4 {[%emt 0:00:14]} Rb1 {[%emt 0:00:13]} 83. Ra5 {[%emt 0:00:10]} Rb6 {[%emt 0:00:12]} 84. Ra7+ {[%emt 0:00:11]} Kh8 {[%emt 0:00:12]} 85. g5 {[%emt 0:00:27]} Rb4+ {[%emt 0:00:24]} 86. Bg4 {[%emt 0:00:13]} Rb6 {[%emt 0:00:04]} 87. Kh5 {[%emt 0:00:09]} Kg8 {[%emt 0:00:12]} 88. g6 {[%emt 0:00:25]} Rb2 {[%emt 0:00:15]} 89. Be6+ {[%emt 0:00:07]} 1-0

[Event "33rd Pula Open 2019"]
[Site "Pula"]
[Date "2019.06.25"]
[Round "5.6"]
[White "Suta, Andraz"]
[Black "Filipovic, Branko"]
[Result "1-0"]
[ECO "B45"]
[WhiteElo "2195"]
[BlackElo "2371"]
[Annotator "NA"]
[PlyCount "71"]
[EventDate "2019.06.22"]
[EventType "swiss"]
[EventCountry "CRO"]
[SourceTitle "playchess.com"]
[Source "ChessBase"]
[SourceQuality "1"]
[TimeControl "5400+30"]

1. e4 {[%emt 0:00:30]} c5 {[%emt 0:00:30]} 2. Nf3 {[%emt 0:00:00]} Nc6 {[%emt 0:00:00]} 3. d4 {[%emt 0:00:00]} cxd4 {[%emt 0:00:00]} 4. Nxd4 {[%emt 0:00:00]} Nf6 {[%emt 0:00:30]} 5. Nc3 {[%emt 0:00:00]} e6 {[%emt 0:00:30]} 6. Ndb5 {[%emt 0:00:30]} Bc5 {[%emt 0:00:30]} 7. Nd6+ {[%emt 0:16:30]} Ke7 {[%emt 0:00:30]} 8. Bf4 {[%emt 0:24:30]} e5 {[%emt 0:00:30]} 9. Nf5+ {[%emt 0:02:30]} Kf8 {[%emt 0:00:30]} 10. Bg5 {[%emt 0:18:30]} d6 {[%emt 0:07:30]} 11. Bxf6 {[%emt 0:05:30]} Qxf6 {[%emt 0:00:00]} 12. Nd5 {[%emt 0:00:00]} Qd8 {[%emt 0:00:00]} 13. Nfe3 {[%emt 0:02:00]} Be6 {[%emt 0:12:30]} 14. c3 {[%emt 0:04:30]} a6 {[%emt 0:01:30]} 15. Bd3 {[%emt 0:04:05]} Ne7 {[%emt 0:07:30]} 16. Bc2 {[%emt 0:02:05]} Ng6 {[%emt 0:11:30]} 17. g3 {[%emt 0:00:13]} h5 {[%emt 0:00:30]} 18. Qe2 {[%emt 0:02:12]} Rc8 {[%emt 0:00:30]} 19. O-O-O {[%emt 0:02:01]} b5 {[%emt 0:05:30]} 20. Kb1 {[%emt 0:00:12]} Rb8 {[%emt 0:02:30]} 21. f4 {[%emt 0:00:24]} Bxe3 {[%emt 0:10:30]} 22. Qxe3 {[%emt 0:01:00]} Bxd5 {[%emt 0:00:30]} 23. exd5 {[%emt 0:00:32]} exf4 {[%emt 0:06:30]} 24. gxf4 {[%emt 0:00:05]} Ne7 {[%emt 0:04:30]} 25. Rhg1 {[%emt 0:00:25]} b4 {[%emt 0:02:30]} 26. cxb4 {[%emt 0:04:43]} Qb6 {[%emt 0:00:30]} 27. Qc3 {[%emt 0:00:34]} f6 {[%emt 0:00:30]} 28. Qg3 {[%emt 0:01:17]} g6 {[%emt 0:01:30]} 29. Rde1 {[%emt 0:03:00]} Qxb4 {[%emt 0:00:30]} 30. b3 {[%emt 0:00:53]} h4 {[%emt 0:02:30]} 31. Qe3 {[%emt 0:01:33]} Rh7 {[%emt 0:11:15]} 32. Qe6 {[%emt 0:00:15]} Qc3 {[%emt 0:01:34]} 33. Qxd6 {[%emt 0:00:12]} Rc8 {[%emt 0:00:55]} 34. Bxg6 {[%emt 0:01:22]} Rg7 {[%emt 0:01:20]} 35. Rc1 {[%emt 0:01:47]} Qh3 {[%emt 0:01:28]} 36. Qxf6+ {[%emt 0:00:47]} 1-0

[Event "33rd Pula Open 2019"]
[Site "Pula"]
[Date "2019.06.25"]
[Round "5.7"]
[White "Boric, Muhamed"]
[Black "Zierke, Oliver"]
[Result "1-0"]
[ECO "D02"]
[WhiteElo "2361"]
[BlackElo "2227"]
[Annotator "NA"]
[PlyCount "85"]
[EventDate "2019.06.22"]
[EventType "swiss"]
[EventCountry "CRO"]
[SourceTitle "playchess.com"]
[Source "ChessBase"]
[SourceQuality "1"]
[TimeControl "5400+30"]

1. Nf3 {[%emt 0:02:30]} Nf6 {[%emt 0:00:30]} 2. g3 {[%emt 0:00:30]} d5 {[%emt 0:00:30]} 3. Bg2 {[%emt 0:00:00]} c5 {[%emt 0:00:30]} 4. O-O {[%emt 0:02:00]} Nc6 {[%emt 0:00:00]} 5. d4 {[%emt 0:02:30]} cxd4 {[%emt 0:02:00]} 6. Nxd4 {[%emt 0:00:00]} e5 {[%emt 0:00:30]} 7. Nxc6 {[%emt 0:00:00]} bxc6 {[%emt 0:00:30]} 8. c4 {[%emt 0:00:30]} Be6 {[%emt 0:00:30]} 9. Qa4 {[%emt 0:01:30]} Qd7 {[%emt 0:02:30]} 10. Nc3 {[%emt 0:02:30]} Rc8 {[%emt 0:00:30]} 11. cxd5 {[%emt 0:20:30]} Nxd5 {[%emt 0:07:30]} 12. Rd1 {[%emt 0:00:30]} Nxc3 {[%emt 0:17:30]} 13. bxc3 {[%emt 0:00:30]} Qc7 {[%emt 0:00:30]} 14. Be3 {[%emt 0:00:30]} Be7 {[%emt 0:00:30]} 15. Qxa7 {[%emt 0:00:30]} Qxa7 {[%emt 0:00:30]} 16. Bxa7 {[%emt 0:01:30]} O-O {[%emt 0:00:30]} 17. a4 {[%emt 0:00:30]} Ra8 {[%emt 0:03:30]} 18. Bb6 {[%emt 0:00:30]} Rfc8 {[%emt 0:03:30]} 19. a5 {[%emt 0:00:30]} Bc4 {[%emt 0:00:30]} 20. e3 {[%emt 0:12:30]} f5 {[%emt 0:04:30]} 21. Bf1 {[%emt 0:05:30]} Bxf1 {[%emt 0:01:30]} 22. Kxf1 {[%emt 0:00:30]} Ra6 {[%emt 0:00:30]} 23. e4 {[%emt 0:01:30]} fxe4 {[%emt 0:03:30]} 24. Ra4 {[%emt 0:00:30]} e3 {[%emt 0:02:30]} 25. fxe3 {[%emt 0:00:30]} Kf7 {[%emt 0:00:30]} 26. Rd7 {[%emt 0:07:30]} Ke6 {[%emt 0:00:30]} 27. Rb7 {[%emt 0:00:30]} h5 {[%emt 0:01:30]} 28. Ke2 {[%emt 0:00:30]} g6 {[%emt 0:08:30]} 29. Kd3 {[%emt 0:00:30]} Bd8 {[%emt 0:00:30]} 30. Kc4 {[%emt 0:01:30]} Be7 {[%emt 0:01:30]} 31. Ra2 {[%emt 0:01:30]} Bd8 {[%emt 0:06:30]} 32. e4 {[%emt 0:03:30]} Rca8 {[%emt 0:06:30]} 33. Rd2 {[%emt 0:01:30]} Bxb6 {[%emt 0:00:30]} 34. Rxb6 {[%emt 0:00:30]} Rxa5 {[%emt 0:01:30]} 35. Rxc6+ {[%emt 0:00:30]} Ke7 {[%emt 0:00:00]} 36. Rd5 {[%emt 0:00:30]} Kf7 {[%emt 0:05:00]} 37. Rd7+ {[%emt 0:04:30]} Kf8 {[%emt 0:00:53]} 38. Rdd6 {[%emt 0:03:30]} Ra4+ {[%emt 0:01:42]} 39. Kd5 {[%emt 0:00:30]} R8a5+ {[%emt 0:01:25]} 40. Ke6 {[%emt 0:00:30]} Rxe4 {[%emt 0:00:37]} 41. Rc8+ {[%emt 0:02:30]} Kg7 {[%emt 0:00:08]} 42. Rd7+ {[%emt 0:00:30]} Kh6 {[%emt 0:00:07]} 43. h4 {[%emt 0:00:00]} 1-0

[Event "33rd Pula Open 2019"]
[Site "Pula"]
[Date "2019.06.25"]
[Round "5.8"]
[White "Tisaj, Domen"]
[Black "Halfhide, Sebastian"]
[Result "1-0"]
[ECO "E46"]
[WhiteElo "2232"]
[BlackElo "2286"]
[Annotator "NA"]
[PlyCount "101"]
[EventDate "2019.06.22"]
[EventType "swiss"]
[EventCountry "CRO"]
[SourceTitle "playchess.com"]
[Source "ChessBase"]
[SourceQuality "1"]
[TimeControl "5400+30"]

1. d4 {[%emt 0:00:30]} Nf6 {[%emt 0:02:30]} 2. c4 {[%emt 0:00:00]} e6 {[%emt 0:00:30]} 3. Nc3 {[%emt 0:00:00]} Bb4 {[%emt 0:00:30]} 4. e3 {[%emt 0:00:30]} O-O {[%emt 0:01:30]} 5. Nge2 {[%emt 0:00:00]} c6 {[%emt 0:03:30]} 6. a3 {[%emt 0:00:00]} Ba5 {[%emt 0:00:30]} 7. Bd2 {[%emt 0:02:30]} d5 {[%emt 0:00:30]} 8. Ng3 {[%emt 0:00:30]} Nbd7 {[%emt 0:03:30]} 9. Be2 {[%emt 0:00:00]} dxc4 {[%emt 0:02:30]} 10. Bxc4 {[%emt 0:00:00]} e5 {[%emt 0:02:30]} 11. O-O {[%emt 0:00:30]} Bc7 {[%emt 0:00:30]} 12. dxe5 {[%emt 0:18:30]} Nxe5 {[%emt 0:03:30]} 13. Be2 {[%emt 0:00:00]} Bg4 {[%emt 0:10:30]} 14. h3 {[%emt 0:14:00]} Bxe2 {[%emt 0:01:30]} 15. Ncxe2 {[%emt 0:00:30]} Nc4 {[%emt 0:18:30]} 16. Bc3 {[%emt 0:00:30]} Be5 {[%emt 0:02:30]} 17. Qc2 {[%emt 0:05:30]} Bxc3 {[%emt 0:04:30]} 18. Qxc3 {[%emt 0:00:30]} Nb6 {[%emt 0:00:30]} 19. e4 {[%emt 0:01:30]} Re8 {[%emt 0:01:30]} 20. f3 {[%emt 0:01:30]} Nbd7 {[%emt 0:04:30]} 21. Nf5 {[%emt 0:02:30]} Qb6+ {[%emt 0:02:30]} 22. Kh1 {[%emt 0:00:30]} Qc5 {[%emt 0:00:30]} 23. Rfd1 {[%emt 0:05:30]} Qxc3 {[%emt 0:01:30]} 24. Nxc3 {[%emt 0:00:30]} Nb6 {[%emt 0:00:30]} 25. b3 {[%emt 0:00:30]} g6 {[%emt 0:03:30]} 26. Nd6 {[%emt 0:04:30]} Re7 {[%emt 0:00:30]} 27. g3 {[%emt 0:04:30]} Ne8 {[%emt 0:09:07]} 28. f4 {[%emt 0:02:30]} Rd8 {[%emt 0:01:13]} 29. Nxe8 {[%emt 0:00:30]} Rexe8 {[%emt 0:00:28]} 30. e5 {[%emt 0:00:30]} f5 {[%emt 0:02:00]} 31. Kg2 {[%emt 0:03:30]} Kf7 {[%emt 0:00:48]} 32. Kf3 {[%emt 0:00:30]} Ke6 {[%emt 0:00:32]} 33. g4 {[%emt 0:01:30]} Rf8 {[%emt 0:07:37]} 34. Ne2 {[%emt 0:01:30]} c5 {[%emt 0:02:28]} 35. b4 {[%emt 0:05:30]} fxg4+ {[%emt 0:00:39]} 36. hxg4 {[%emt 0:00:30]} Nc4 {[%emt 0:00:28]} 37. Kg3 {[%emt 0:04:30]} Nb2 {[%emt 0:03:42]} 38. Rxd8 {[%emt 0:02:30]} Rxd8 {[%emt 0:00:01]} 39. bxc5 {[%emt 0:00:00]} Na4 {[%emt 0:00:21]} 40. Rc1 {[%emt 0:01:00]} g5 {[%emt 0:00:59]} 41. c6 {[%emt 0:00:00]} bxc6 {[%emt 0:00:29]} 42. Rxc6+ {[%emt 0:00:00]} Kd5 {[%emt 0:00:24]} 43. Ra6 {[%emt 0:00:30]} Nc5 {[%emt 0:00:27]} 44. Rxa7 {[%emt 0:00:30]} Ne4+ {[%emt 0:01:02]} 45. Kf3 {[%emt 0:01:30]} Nd2+ {[%emt 0:00:06]} 46. Ke3 {[%emt 0:00:30]} Nc4+ {[%emt 0:02:07]} 47. Kd3 {[%emt 0:00:30]} gxf4 {[%emt 0:01:41]} 48. Nxf4+ {[%emt 0:00:30]} Kc5+ {[%emt 0:00:37]} 49. Kc3 {[%emt 0:00:58]} Nxe5 {[%emt 0:00:44]} 50. Ra5+ {[%emt 0:00:05]} Kd6 {[%emt 0:00:19]} 51. Rd5+ {[%emt 0:00:27]} 1-0

[Event "33rd Pula Open 2019"]
[Site "Pula"]
[Date "2019.06.25"]
[Round "5.9"]
[White "Purgar, Ivona"]
[Black "Franciskovic, Borka"]
[Result "1/2-1/2"]
[ECO "B15"]
[WhiteElo "2194"]
[BlackElo "2261"]
[Annotator "NA"]
[PlyCount "32"]
[EventDate "2019.06.22"]
[EventType "swiss"]
[EventCountry "CRO"]
[SourceTitle "playchess.com"]
[Source "ChessBase"]
[SourceQuality "1"]
[TimeControl "5400+30"]

1. e4 {[%emt 0:00:30]} c6 {[%emt 0:00:30]} 2. d4 {[%emt 0:00:00]} d5 {[%emt 0:00:00]} 3. Nc3 {[%emt 0:00:00]} dxe4 {[%emt 0:00:00]} 4. Nxe4 {[%emt 0:00:00]} Nf6 {[%emt 0:00:30]} 5. Nxf6+ {[%emt 0:00:00]} exf6 {[%emt 0:00:00]} 6. c3 {[%emt 0:00:30]} Bd6 {[%emt 0:00:00]} 7. Bd3 {[%emt 0:03:30]} O-O {[%emt 0:00:30]} 8. Ne2 {[%emt 0:01:30]} Re8 {[%emt 0:02:30]} 9. Be3 {[%emt 0:08:30]} Nd7 {[%emt 0:04:30]} 10. Qc2 {[%emt 0:02:30]} Nf8 {[%emt 0:03:30]} 11. O-O {[%emt 0:04:30]} Qc7 {[%emt 0:17:30]} 12. Ng3 {[%emt 0:11:30]} Bd7 {[%emt 0:15:30]} 13. Rfe1 {[%emt 0:16:30]} Rad8 {[%emt 0:02:30]} 14. c4 {[%emt 0:07:30]} Bc8 {[%emt 0:09:30]} 15. a3 {[%emt 0:06:30]} h5 {[%emt 0:07:30]} 16. Nf1 {[%emt 0:14:54]} Ne6 {[%emt 0:16:59]} 1/2-1/2

[Event "33rd Pula Open 2019"]
[Site "Pula"]
[Date "2019.06.25"]
[Round "5.11"]
[White "Fercec, Nenad"]
[Black "Bozinovic, Bogdan"]
[Result "1-0"]
[ECO "B99"]
[WhiteElo "2446"]
[BlackElo "2194"]
[Annotator "NA"]
[PlyCount "73"]
[EventDate "2019.06.22"]
[EventType "swiss"]
[EventCountry "CRO"]
[SourceTitle "playchess.com"]
[Source "ChessBase"]
[SourceQuality "1"]
[TimeControl "5400+30"]

1. e4 {[%emt 0:01:30]} c5 {[%emt 0:01:30]} 2. Nf3 {[%emt 0:00:30]} d6 {[%emt 0:00:30]} 3. d4 {[%emt 0:00:00]} cxd4 {[%emt 0:00:30]} 4. Nxd4 {[%emt 0:00:00]} Nf6 {[%emt 0:00:00]} 5. Nc3 {[%emt 0:00:30]} a6 {[%emt 0:00:00]} 6. Bg5 {[%emt 0:00:00]} e6 {[%emt 0:01:30]} 7. f4 {[%emt 0:00:00]} Be7 {[%emt 0:01:30]} 8. Qf3 {[%emt 0:00:30]} h6 {[%emt 0:01:30]} 9. Bh4 {[%emt 0:00:00]} Qc7 {[%emt 0:00:30]} 10. O-O-O {[%emt 0:00:00]} Nbd7 {[%emt 0:01:30]} 11. Bd3 {[%emt 0:00:30]} g5 {[%emt 0:01:30]} 12. fxg5 {[%emt 0:00:30]} Ne5 {[%emt 0:00:00]} 13. Qe2 {[%emt 0:00:30]} Nh7 {[%emt 0:02:00]} 14. Qh5 {[%emt 0:06:30]} hxg5 {[%emt 0:03:30]} 15. Bg3 {[%emt 0:00:30]} Bf6 {[%emt 0:08:30]} 16. Bb5+ {[%emt 0:45:30]} Kf8 {[%emt 0:29:30]} 17. Rhf1 {[%emt 0:00:30]} Qe7 {[%emt 0:03:30]} 18. Ba4 {[%emt 0:05:30]} g4 {[%emt 0:05:30]} 19. Qh6+ {[%emt 0:00:30]} Kg8 {[%emt 0:01:30]} 20. Qd2 {[%emt 0:00:30]} Nc4 {[%emt 0:08:30]} 21. Qf2 {[%emt 0:08:30]} Bg5+ {[%emt 0:02:30]} 22. Kb1 {[%emt 0:00:00]} Ne3 {[%emt 0:03:30]} 23. Bxd6 {[%emt 0:02:00]} Nxd1 {[%emt 0:00:00]} 24. Nxd1 {[%emt 0:01:30]} Qf6 {[%emt 0:01:00]} 25. Qg1 {[%emt 0:02:30]} Qg6 {[%emt 0:02:30]} 26. e5 {[%emt 0:03:30]} b5 {[%emt 0:04:28]} 27. Bb3 {[%emt 0:00:00]} Bb7 {[%emt 0:00:11]} 28. Qf2 {[%emt 0:00:00]} Re8 {[%emt 0:07:21]} 29. a4 {[%emt 0:05:56]} Nf8 {[%emt 0:00:43]} 30. g3 {[%emt 0:04:02]} Bd8 {[%emt 0:01:02]} 31. Ne3 {[%emt 0:03:08]} Rh7 {[%emt 0:01:08]} 32. Qe2 {[%emt 0:00:17]} Bb6 {[%emt 0:05:34]} 33. Nxg4 {[%emt 0:00:23]} Nd7 {[%emt 0:00:16]} 34. Rf4 {[%emt 0:00:34]} Bd8 {[%emt 0:01:14]} 35. h4 {[%emt 0:00:38]} Nb6 {[%emt 0:01:48]} 36. axb5 {[%emt 0:02:00]} a5 {[%emt 0:00:58]} 37. Nc6 {[%emt 0:00:40]} 1-0

[Event "33rd Pula Open 2019"]
[Site "Pula"]
[Date "2019.06.25"]
[Round "5.12"]
[White "Dijkhuis, Oele"]
[Black "Berezjuk, Sergej"]
[Result "0-1"]
[ECO "A01"]
[WhiteElo "2161"]
[BlackElo "2411"]
[Annotator "NA"]
[PlyCount "92"]
[EventDate "2019.06.22"]
[EventType "swiss"]
[EventCountry "CRO"]
[SourceTitle "playchess.com"]
[Source "ChessBase"]
[SourceQuality "1"]
[TimeControl "5400+30"]

1. e3 {[%emt 0:04:30]} Nf6 {[%emt 0:01:30]} 2. b3 {[%emt 0:00:30]} e5 {[%emt 0:01:30]} 3. Bb2 {[%emt 0:00:30]} Nc6 {[%emt 0:00:00]} 4. Bb5 {[%emt 0:00:30]} Bd6 {[%emt 0:00:00]} 5. Nf3 {[%emt 0:13:30]} e4 {[%emt 0:19:30]} 6. Ng1 {[%emt 0:02:30]} Be5 {[%emt 0:04:30]} 7. Bxe5 {[%emt 0:07:30]} Nxe5 {[%emt 0:00:30]} 8. Be2 {[%emt 0:28:30]} d5 {[%emt 0:03:30]} 9. d4 {[%emt 0:02:30]} Ng6 {[%emt 0:02:30]} 10. c4 {[%emt 0:00:30]} c6 {[%emt 0:01:30]} 11. Nc3 {[%emt 0:02:30]} Nh4 {[%emt 0:03:30]} 12. g3 {[%emt 0:06:30]} Nf5 {[%emt 0:00:30]} 13. cxd5 {[%emt 0:00:30]} cxd5 {[%emt 0:00:30]} 14. Bb5+ {[%emt 0:02:30]} Kf8 {[%emt 0:01:30]} 15. h4 {[%emt 0:02:30]} Nd6 {[%emt 0:01:30]} 16. Be2 {[%emt 0:00:30]} h5 {[%emt 0:03:30]} 17. Rc1 {[%emt 0:02:54]} g6 {[%emt 0:07:30]} 18. Qd2 {[%emt 0:02:40]} Kg7 {[%emt 0:01:30]} 19. Nb5 {[%emt 0:01:20]} Nxb5 {[%emt 0:10:30]} 20. Bxb5 {[%emt 0:00:01]} Qd6 {[%emt 0:01:30]} 21. Kf1 {[%emt 0:01:16]} Bf5 {[%emt 0:05:30]} 22. Kg2 {[%emt 0:04:08]} Qe6 {[%emt 0:02:30]} 23. Nh3 {[%emt 0:00:55]} Bxh3+ {[%emt 0:10:26]} 24. Rxh3 {[%emt 0:00:01]} Rac8 {[%emt 0:00:10]} 25. Rhh1 {[%emt 0:00:26]} Qf5 {[%emt 0:00:37]} 26. Be2 {[%emt 0:00:43]} Ng4 {[%emt 0:00:38]} 27. Bxg4 {[%emt 0:00:10]} hxg4 {[%emt 0:00:04]} 28. Rhe1 {[%emt 0:04:27]} g5 {[%emt 0:03:09]} 29. Rxc8 {[%emt 0:00:54]} Qf3+ {[%emt 0:02:35]} 30. Kg1 {[%emt 0:00:42]} gxh4 {[%emt 0:01:51]} 31. Qe2 {[%emt 0:05:59]} Rxc8 {[%emt 0:01:13]} 32. Qxf3 {[%emt 0:02:47]} gxf3 {[%emt 0:00:27]} 33. gxh4 {[%emt 0:00:22]} Rc2 {[%emt 0:01:14]} 34. a3 {[%emt 0:00:27]} Kg6 {[%emt 0:01:03]} 35. Rf1 {[%emt 0:00:46]} Kh5 {[%emt 0:00:49]} 36. b4 {[%emt 0:00:15]} Kxh4 {[%emt 0:00:51]} 37. b5 {[%emt 0:00:26]} b6 {[%emt 0:00:47]} 38. Kh2 {[%emt 0:00:30]} f5 {[%emt 0:01:52]} 39. Rh1 {[%emt 0:00:20]} f4 {[%emt 0:03:35]} 40. Kg1+ {[%emt 0:00:55]} Kg4 {[%emt 0:00:09]} 41. Rh7 {[%emt 0:00:19]} Rc1+ {[%emt 0:00:20]} 42. Kh2 {[%emt 0:00:03]} fxe3 {[%emt 0:00:08]} 43. fxe3 {[%emt 0:00:19]} f2 {[%emt 0:00:14]} 44. Rg7+ {[%emt 0:00:55]} Kf3 {[%emt 0:00:23]} 45. Rg1 {[%emt 0:00:45]} fxg1=Q+ {[%emt 0:00:30]} 46. Kh3 {[%emt 0:00:05]} Qh1# {[%emt 0:00:16]} 0-1

[Event "33rd Pula Open 2019"]
[Site "Pula"]
[Date "2019.06.25"]
[Round "5.13"]
[White "Urh, Zala"]
[Black "Grishchenko, Sergey"]
[Result "1-0"]
[ECO "B16"]
[WhiteElo "2127"]
[BlackElo "2411"]
[Annotator "NA"]
[PlyCount "65"]
[EventDate "2019.06.22"]
[EventType "swiss"]
[EventCountry "CRO"]
[SourceTitle "playchess.com"]
[Source "ChessBase"]
[SourceQuality "1"]
[TimeControl "5400+30"]

1. e4 {[%emt 0:00:30]} c6 {[%emt 0:00:30]} 2. d4 {[%emt 0:00:30]} d5 {[%emt 0:00:00]} 3. Nc3 {[%emt 0:00:30]} dxe4 {[%emt 0:00:00]} 4. Nxe4 {[%emt 0:00:00]} Nf6 {[%emt 0:00:00]} 5. Nxf6+ {[%emt 0:00:00]} gxf6 {[%emt 0:00:00]} 6. c3 {[%emt 0:00:30]} Qd5 {[%emt 0:01:30]} 7. Be3 {[%emt 0:00:30]} Bf5 {[%emt 0:01:30]} 8. Nf3 {[%emt 0:00:30]} Nd7 {[%emt 0:01:30]} 9. g3 {[%emt 0:03:30]} Nb6 {[%emt 0:12:30]} 10. Bg2 {[%emt 0:00:30]} Qc4 {[%emt 0:03:30]} 11. Nh4 {[%emt 0:03:30]} Bd3 {[%emt 0:01:30]} 12. Qd2 {[%emt 0:03:30]} e5 {[%emt 0:32:30]} 13. b3 {[%emt 0:07:30]} Qa6 {[%emt 0:04:30]} 14. Rd1 {[%emt 0:01:30]} e4 {[%emt 0:00:00]} 15. f3 {[%emt 0:01:30]} f5 {[%emt 0:00:00]} 16. Bh3 {[%emt 0:08:30]} f4 {[%emt 0:14:30]} 17. Bxf4 {[%emt 0:03:30]} Nd5 {[%emt 0:00:30]} 18. fxe4 {[%emt 0:04:30]} Bxe4 {[%emt 0:01:30]} 19. Rf1 {[%emt 0:00:30]} Be7 {[%emt 0:08:44]} 20. Bf5 {[%emt 0:06:30]} Bxf5 {[%emt 0:12:36]} 21. Nxf5 {[%emt 0:00:00]} O-O-O {[%emt 0:01:42]} 22. Nxe7+ {[%emt 0:01:00]} Nxe7 {[%emt 0:00:04]} 23. Kf2 {[%emt 0:04:30]} Qa5 {[%emt 0:00:31]} 24. Kg1 {[%emt 0:01:30]} Ng6 {[%emt 0:00:51]} 25. Rde1 {[%emt 0:04:30]} Rhe8 {[%emt 0:00:39]} 26. Bg5 {[%emt 0:01:30]} Rxe1 {[%emt 0:00:10]} 27. Rxe1 {[%emt 0:00:30]} Rd5 {[%emt 0:00:06]} 28. h4 {[%emt 0:06:30]} Rf5 {[%emt 0:00:31]} 29. Qe3 {[%emt 0:01:30]} Qd5 {[%emt 0:01:08]} 30. c4 {[%emt 0:00:30]} Qd7 {[%emt 0:00:55]} 31. h5 {[%emt 0:08:30]} h6 {[%emt 0:01:02]} 32. hxg6 {[%emt 0:02:30]} Rxg5 {[%emt 0:00:19]} 33. Qe8+ {[%emt 0:00:00]} 1-0